Cogmind - Beta 17 @@@ ROGUE MODE // 2026.08.03 @ 23:58:46 Player: ChCbias Result: Destroyed by 4P-DF5(R) with Subdweller Laser Performance ------------- Evolutions (0) 0 Regions Visited (2) 400 Robots Destroyed (16) 80 Value Destroyed (435) 435 Prototype IDs (3) 60 Alien Tech Used (0) 0 Bonus (0) 0 TOTAL SCORE: 975 Bonus ------- None Cogmind --------- Core Integrity 0/250 Matter 280/300 Energy 85/100 System Corruption 0% Temperature Cool (12) Movement Core (750) Ox14 Location -10/Subcaves Parts ------- > --- POWER (1) -------- (None) > --- PROPULSION (2) --- (None) > --- UTILITY (2) ------ High-capacity Storage Unit > --- WEAPON (2) ------- Grenade Launcher > --- INVENTORY (20) --- Ion Engine Light Ion Engine Light Treads Light Treads Light Treads Wheel Wheel Compact Wheel Improved Heat Sink Structural Scanner Structural Scanner EM Pulse Gun Medium Laser Small Laser Small Laser Particle Gun Light Assault Rifle Light Assault Rifle Mining Laser Peak State ------------ > --- POWER ------------ Ion Engine > --- PROPULSION ------- Light Treads Light Treads > --- UTILITY ---------- Improved Heat Sink High-capacity Storage Unit > --- WEAPON ----------- Medium Laser Medium Laser > --- INVENTORY -------- Ion Engine Light Ion Engine Light Treads Light Treads Light Treads Wheel Wheel Compact Wheel Structural Scanner Structural Scanner Light Armor Plating EM Pulse Gun Medium Laser Small Laser Small Laser Particle Gun Light Assault Rifle Light Assault Rifle Grenade Launcher [Rating: 11] Favorites ----------- Power Ion Engine Engine Ion Engine Propulsion Light Treads Treads Light Treads Utility High-capacity Storage Unit Device Improved Heat Sink Storage High-capacity Storage Unit Protection Light Armor Plating Weapon Medium Laser Energy Gun Medium Laser Launcher Grenade Launcher Build | -11 -10 -10 ------- Run | Yrd Mat Sub Slots Evolved . | . . . Power . | . . . Propulsion . | . . . Utility . | . . . Weapon . | . . . Parts Attached 14 | 6 6 2 Power 2 | 1 1 . Engine 2 | 1 1 . Core . | . . . Reactor . | . . . Propulsion 2 | 2 . . Treads 2 | 2 . . Leg . | . . . Wheel . | . . . Hover . | . . . Flight . | . . . Utility 6 | 1 4 1 Device 2 | . 2 . Storage 2 | 1 1 . Processor . | . . . Hackware . | . . . Protection 2 | . 1 1 Artifact . | . . . Weapon 4 | 2 1 1 Energy Gun 3 | 2 1 . Energy Cannon . | . . . Ballistic Gun . | . . . Ballistic Cannon . | . . . Launcher 1 | . . 1 Special Weapon . | . . . Impact Weapon . | . . . Slashing Weapon . | . . . Piercing Weapon . | . . . Special Melee Weapon . | . . . Unidentified Prototypes . | . . . Parts Lost 8 | . 2 6 Power 2 | . 1 1 Propulsion 2 | . . 2 Utility 2 | . 1 1 Weapon 2 | . . 2 Highest Loss Streak 6 | . 1 6 To Critical Strikes . | . . . Average Backups 11 | 2 12 20 Power 1 | . 1 2 Propulsion 3 | 1 4 6 Utility 2 | . 2 3 Weapon 3 | . 3 9 Tool/Special . | . . . Unused Backups 19 | . 3 16 Power 3 | . 1 2 Propulsion 8 | . 2 6 Utility 1 | . . 1 Weapon 7 | . . 7 Tool/Special . | . . . Average Slot Usage (%) 98 | . 98 76 Engine 13 | . 13 9 Treads 27 | . 28 18 Device 6 | . 6 4 Storage 14 | . 14 14 Protection 6 | . 6 4 Energy Gun 27 | . 27 23 Peak Build Rating 11 | 6 11 9 Average Rating 8 | 4 8 7 On Entrance 5 | . 6 9 Avg Prop Armor Cover (%) . | . . . Naked Turns . | . . . Heaviest Build 52 | 12 52 52 Greatest Support 40 | 40 40 40 Greatest Overweight (x) 2 | . 2 1 Average Overweight (x) . | . . 1 Largest Inventory Capacity 20 | 8 20 20 Average Capacity 15 | 6 15 20 Most Carried 20 | 6 20 20 Average Carried 11 | 2 12 19 Final Capacity 20 | 8 20 20 Final Carried 20 | 6 20 19 Class Distribution -------------------- 100% | Mutant Dominant Class ---------------- Mutant | -10/Materials Mutant | -10/Subcaves Resources | -11 -10 -10 ----------- Run | Yrd Mat Sub Matter Collected 368 | 260 93 15 Remotely . | . . . Salvage Created 571 | . 533 38 Parts 22 | . 21 1 Haulers Intercepted 2 | . 2 . Recyclers Shooed . | . . . Parts Field Recycled . | . . . Retrieved Matter . | . . . Parts Self-Destructed . | . . . Prevented . | . . . Parts Restored . | . . . Kills | -11 -10 -10 ------- Run | Yrd Mat Sub Combat Hostiles Destroyed 13 | . 12 1 Melee 1 | . 1 . Guns 10 | . 10 . AOE 1 | . . 1 Classes Destroyed 5 | . 4 1 Hauler 2 | . 2 . Watcher 1 | . 1 . Swarmer 3 | . 3 . Grunt 9 | . 9 . Subdweller 1 | . . 1 Best Kill Streak 2 | . 2 1 Combat Bots Only 2 | . 2 1 Max Kills in Single Turn 1 | . 1 1 Gunslinging . | . . . Exploded 1 | . . 1 Melee 1 | . 1 . Uniques/NPCs Destroyed . | . . . Combat | -11 -10 -10 -------- Run | Yrd Mat Sub Hostile Shots Fired 88 | . 65 23 Missed 10 | . 8 2 Hits 78 | . 57 21 Projectile 78 | . 57 21 Critical Strikes 3 | . 3 . Damage Taken 1145 | . 638 507 Core 255 | . 108 147 Absorbed by Shields . | . . . Regen/Repaired (Parts) 67 | . 67 . Core Remaining (%) 100 | 100 . . Volleys Fired 56 | . 50 6 Largest 2 | . 2 2 Hottest 100 | . 100 100 Shots Fired 111 | . 100 11 Gun 110 | . 100 10 Cannon . | . . . Launcher 1 | . . 1 Special . | . . . Kinetic . | . . . Thermal 110 | . 100 10 Explosive 1 | . . 1 Electromagnetic . | . . . Robot Hit Streak 13 | . 13 6 Robot Miss Streak 4 | . 4 1 Penetration Max . | . . . Secondary Targets . | . . . Shots Hit Robots 79 | . 69 10 Core Hits 33 | . 29 4 Critical Kills . | . . . Critical Parts Destroyed . | . . . Critical Strikes 8 | . 7 1 Burn 8 | . 7 1 Melee Attacks . | . . . Impact . | . . . Slashing . | . . . Piercing . | . . . Sneak Attacks . | . . . Combat Hostiles . | . . . Follow-up Attacks . | . . . Damage Inflicted 1108 | . 888 220 Guns 983 | . 871 112 Cannons . | . . . Explosions 108 | . . 108 Melee . | . . . Ramming 17 | . 17 . Kinetic . | . . . Thermal 983 | . 871 112 Explosive 108 | . . 108 Electromagnetic . | . . . Impact . | . . . Slashing . | . . . Piercing . | . . . Highest Corruption . | . . . Average Corruption . | . . . Corruption Purged . | . . . Corruption Blocked . | . . . Overload Shots . | . . . Overflow Damage . | . . . Projectiles . | . . . Explosions . | . . . Melee . | . . . Knockbacks . | . . . Impact . | . . . Kinetic . | . . . Secondary . | . . . Self-Inflicted Damage 38 | . . 38 Shots 1 | . . 1 Rammed 5 | . 5 . Targets Rammed 5 | . 5 . Kicked . | . . . Crushed . | . . . Highest Temperature 324 | . 324 30 Average Temperature 117 | . 121 15 Received Heat Transfer 492 | . 360 132 Effects 3 | . 3 . Shutdowns 1 | . 1 . Energy Bleed 1 | . 1 . Interference 1 | . 1 . Siege Activations . | . . . Martial Activations . | . . . Shielding Activations . | . . . Robots Disrupted . | . . . Combat Hostiles . | . . . Robots Corrupted . | . . . Combat Hostiles . | . . . Parts Fried . | . . . Impact Corruptions . | . . . Robots Melted 1 | . 1 . Combat Hostiles 1 | . 1 . Parts Melted 9 | . 9 . Heat Transferred 3515 | . 3108 407 Parts Sabotaged . | . . . Parts Stolen . | . . . Parts Stripped . | . . . Power Chain Reactions . | . . . Alert | -11 -10 -10 ------- Run | Yrd Mat Sub Maximum Alert Level . | . . . Low Security (%) 100 | 100 100 . Level 1 . | . . . Level 2 . | . . . Level 3 . | . . . Level 4 . | . . . Level 5 . | . . . High Security . | . . . Max Security . | . . . Peak Influence 77 | . 77 . Initial . | . . . Average 21 | . 23 . Influence Increases 399 | . 399 . Destroy 0b10 Robot/C 240 | . 240 . Destroy 0b10 Robot/NC 15 | . 15 . Destroy Leader 66 | . 66 . Successful Hack 31 | . 31 . Destroy Structure 2 | . 2 . Lose Combat Pursuer 45 | . 45 . Influence Decreases 399 | . 378 21 Entered New Map 11 | . . 11 Time Decay 368 | . 368 . Lost Part 20 | . 10 10 Squads Dispatched 2 | . 2 . Investigation 1 | . 1 . Extermination . | . . . Reinforcement 1 | . 1 . Assault . | . . . Garrison . | . . . Intercept . | . . . Searches Triggered . | . . . Construction Impeded . | . . . Haulers Reinforced . | . . . Active Scanning Responses . | . . . Cargo Convoy Interrupts . | . . . Stealth | -11 -10 -10 --------- Run | Yrd Mat Sub Distress Signals . | . . . Communications Jammed . | . . . Distress Signals . | . . . Times Spotted 29 | . 25 4 Peak Tracking Total 4 | . 3 4 Tactical Retreats 3 | . 3 . Traps | -11 -10 -10 ------- Run | Yrd Mat Sub Traps Triggered 4 | . 4 . Indirectly . | . . . Trap Hack Attempts . | . . . Triggered . | . . . Disarmed . | . . . Reprogrammed . | . . . Reused . | . . . Traps Extracted . | . . . Installed . | . . . Triggered . | . . . Machines | -11 -10 -10 ---------- Run | Yrd Mat Sub Machines Disabled . | . . . Max in Single Turn . | . . . Machines Repaired . | . . . Machines Dismantled . | . . . Machines Sabotaged . | . . . Overloaded Fab Kills . | . . . Hacking | -11 -10 -10 --------- Run | Yrd Mat Sub Machines Accessed 8 | . 8 . Terminals 6 | . 6 . Fabricators . | . . . Repair Stations 1 | . 1 . Recycling Units 1 | . 1 . Scanalyzers . | . . . Garrison Access . | . . . Total Hacks 31 | . 31 . Successful 10 | . 10 . Failed 21 | . 21 . Catastrophic 1 | . 1 . Database Lockouts . | . . . Manual 17 | . 17 . Terminals 27 | . 27 . Fabricators . | . . . Repair Stations 3 | . 3 . Recycling Units 1 | . 1 . Scanalyzers . | . . . Garrison Access . | . . . Terminal Hacks 7 | . 7 . Part Schematic 1 | . 1 . Robot Analysis 3 | . 3 . Prototype ID Bank 1 | . 1 . Alert Level 1 | . 1 . Locate Traps 1 | . 1 . Fabricator Hacks . | . . . Repair Station Hacks 2 | . 2 . Scan Component 1 | . 1 . Repair 1 | . 1 . Recycling Unit Hacks 1 | . 1 . Retrieve Components 1 | . 1 . Scanalyzer . | . . . Garrison Access Hacks . | . . . Unauthorized Hacks . | . . . Terminals . | . . . Fabricators . | . . . Repair Stations . | . . . Recycling Units . | . . . Scanalyzers . | . . . Garrison Access . | . . . Data Cores Recovered . | . . . Used . | . . . Hacking Detections 8 | . 8 . Full Trace Events 3 | . 3 . Feedback Events . | . . . Feedback Blocked . | . . . Robot Schematics Acquired . | . . . Robots Built . | . . . Authchips . | . . . Time . | . . . Total Robot Build Rating . | . . . Part Schematics Acquired 1 | . 1 . Parts Built . | . . . Authchips . | . . . Time . | . . . Total Part Build Rating . | . . . Part Studies Acquired . | . . . Parts Repaired 1 | . 1 . Time 26 | . 26 . Parts Recycled . | . . . Recycled Matter . | . . . Retrieved Matter . | . . . Retrieved Components 10 | . 10 . Parts Scanalyzed . | . . . Part Schematics Acquired . | . . . Parts Damaged . | . . . Bothacking | -11 -10 -10 ------------ Run | Yrd Mat Sub Used RIF Installer . | . . . Robots Hacked . | . . . Non-combat . | . . . Combat . | . . . Robot Hacks Applied . | . . . Relay Couplers Released . | . . . Fabnet Peak Effective % . | . . . Robots Rewired . | . . . Allies Hacked . | . . . Hacks Repelled . | . . . Allies | -11 -10 -10 -------- Run | Yrd Mat Sub Total Allies . | . . . Largest Group . | . . . Highest-Rated Group . | . . . Highest-Rated Ally . | . . . Total Orders . | . . . Ally Attacks . | . . . Total Damage . | . . . Kills . | . . . Allies Corrupted . | . . . Allies Melted . | . . . Intel | -11 -10 -10 ------- Run | Yrd Mat Sub Active Infowar (turns) 29 | . 23 6 Structural 29 | . 23 6 Robot Analysis Total 3 | . 3 . Derelict Logs Recovered . | . . . Drone Launches . | . . . Drone Recoveries . | . . . Exploration | -11 -10 -10 ------------- Run | Yrd Mat Sub Turns Passed 1842 | 99 1720 23 Spaces Moved 736 | 55 679 2 Core 3 | 3 . . Treads 733 | 52 679 2 Legs . | . . . Wheels . | . . . Hover . | . . . Flight . | . . . Fastest Speed 50 | 50 160 240 Average Speed 204 | 154 208 240 Slowest Speed 320 | 160 320 240 Overloaded Moves . | . . . Propulsion Burnouts . | . . . Robots Hopped . | . . . Potential Cave-ins . | . . . Cave-ins Triggered . | . . . Exploration Rate (%) 28 | 3 81 1 Regions Visited 2 Branch Regions 1 Pre-discovered Areas . | . . . Known Exits Taken . | . . . Unknown Exits Taken 2 | 1 1 . Scrap Searched . | . . . Spaces Dug . | . . . Terrain Destroyed 5 | . . 5 Melee . | . . . Projectile . | . . . AOE 5 | . . 5 Terrain Rammed . | . . . Walls Destroyed . | . . . Machines Disabled . | . . . Actions | -11 -10 -10 --------- Run | Yrd Mat Sub Total 958 | 66 882 10 Wait 113 | . 113 . Move 734 | 54 678 2 Hop . | . . . Pick Up 26 | 6 20 . Fast Attach 12 | 6 6 . Attach 3 | . 2 1 Detach . | . . . Swap 4 | . 3 1 Drop 5 | . 5 . Fire 56 | . 50 6 Melee . | . . . Ram . | . . . Kick . | . . . Crush 5 | . 5 . Escape Stasis . | . . . Rewire . | . . . Trap . | . . . Miscellaneous . | . . . Route ------- -11/Scrapyard -10/Materials (discovered 6 exits: [*Mat x3] / [*Min x2] / [*Sub]) -10/Subcaves History --------- Turn | Location | Event 9 | -11/Scrapyard | Discovered new exit (range 13) 100 | -11/Scrapyard | Entered Materials 261 | -10/Materials | Discovered new exit (range 9) 283 | -10/Materials | Discovered new exit (range 12) 310 | -10/Materials | Build established: Mutant 446 | -10/Materials | Discovered new exit (range 5) 521 | -10/Materials | Repaired Lgt. Armor Plating 1113 | -10/Materials | Discovered new exit (range 9) 1485 | -10/Materials | Discovered new exit (range 7) 1569 | -10/Materials | Discovered new exit (range 15) 1820 | -10/Materials | Entered Subcaves 1821 | -10/Subcaves | Approached by a straggling Scientist 1823 | -10/Subcaves | Core integrity fell below 50% 1843 | -10/Subcaves | Destroyed by 4P-DF5(R) with Subdweller Laser Last Messages --------------- beginning to lose hope I'd never make it past all the Subs lurking out here." 01824_ SK-IWL(c): "Hey, let me tag along and I can get us both out of this nasty situation. At least I think I can... The group I got separated from was talking about a shortcut back to the UFD." 01824_ YQ-V45(R) destroyed. 01824_ SK-IWL(c) destroyed. 01827_ Acquired 5 matter. 01834_ Lgt. Treads destroyed. 01836_ PE-TF7(R) suffers critical hit (Burn). 01836_ PE-TF7(R) overheating. 01837_ PE-TF7(R) heat damages Disposable Heat Sink. 01837_ Lgt. Armor Plating destroyed. 01839_ Med. Laser destroyed. 01839_ Ion Engine destroyed. 01841_ Med. Laser destroyed. 01843_ PE-TF7(R) destroyed. Map ----- +----------------------------------------------------+ | ????????????????????????????????????????????? | | ????????????????????????????????????????????? | | ????????????????????????????????????????????? | | ????????????????????????????????????????????? | | ????????????????????????????????????????????? | | ????????????????????????????????????????????? | | ????????????????????????????????????????????? | | ????????????????????????????????????????????? | | ????????????????????????????????????????????? | | ??????????????????????????? ????????????????? | | ??????????????????????????? ???????????????? | | ???????????????????????????O ???????????????? | | ??????????????????????????? #??????????????? | | ?????????????????????????? %##??????????????? | | ?????????????????????????? ##?????????????? | | ?????????????????????????? ###?????????????? | | ??????????????????????????% ##?????????????? | | ?????????????????????????? ##?????????????? | | ?????????????????????????? ###?????????????? | | ???????????????????????## ##?????????????? | | ??????????????????????#### ##?????????????? | | ?????????????????????### ##?????????????? | | ???????????????????##### ###????????????? | | ???????????????????### R ###????????????? | | ???????????????????## R % ##????????????? | | ???????????????????## !* @ ###????????????? | | ??????????????????###[%!#% #####????????????? | | ?????????????????### =##&# ###?????????????? | | ?????????????????## ####???????????????? | | ????????????????? # ? ###????????????????? | | ?????????????????%* ##?"???????????????????? | | ??????????????? ##? ???????????????????? | | ????????????? # ###?? ???????????????????? | | ????????????? #######?" ???????????????????? | | ????????????? ###???##"???????????????????? | | ??????????????????????# ???????????????????? | | ????????????????????????????????????????????? | | ????????????????????????????????????????????? | | ????????????????????????????????????????????? | | ????????????????????????????????????????????? | | ????????????????????????????????????????????? | | ????????????????????????????????????????????? | | ????????????????????????????????????????????? | | ????????????????????????????????????????????? | | ????????????????????????????????????????????? | | ????????????????????????????????????????????? | | ????????????????????????????????????????????? | | ????????????????????????????????????????????? | | ????????????????????????????????????????????? | | ????????????????????????????????????????????? | +----------------------------------------------------+ Best States ------------- Heat Dissipation 39 Energy Generation 10 Energy Capacity 250 Matter Stores 300 Matter Capacity 300 Sight Range 16 Terrain Scan Density 10 Armor Coverage 150 Evasion (%) 40 Recoil Reduction 2 Item Schematics ----------------- Hcp. Storage Unit | -10/Materials | Hacked Robot Schematics ------------------ None Fabricated ------------ Nothing Repaired ---------- Lgt. Armor Plating | 25% | -10/Materials Studied --------- None Alien Tech Used ----------------- None Achievements -------------- None Challenges ------------ None Game ------ Seed PhysicsIonFocus Manual? 0 Play Time 00:09:28 Cumulative 108.2 hours Start 2026.08.03 @ 23:47:37 End 2026.08.03 @ 23:58:46 Sessions 1 Manual Loads 0 Difficulty Rogue Special Mode None Game No. 68 Rogue 68 Adventurer 0 Explorer 0 Win Type - Total 1 Types 1/0/0/0/0/0/0/0/0/0 Lore% 63 Gallery% 51 Achievement% 48 Wizard Run 0 Options --------- Layout 1 ASCII 0 Keyboard 1 Movement Arrows Keybinds 0 Fullscreen 1 Font 24/Smallcaps Map View 50x35 Zoom Use 0% Tactical HUD 1 Map Filters NONE Filters NONE Steam 1 RUN: 4aa9fed4-333d-4ffd-a834-26059762c987